bitfinex/quotes_SOLUSD_20240705
["timestamp","ask_amount","ask_price","bid_price","bid_amount"]
[1720185549626,7.8377,130.42,130.38,7.6698]
[1720185549797,7.667,130.43,130.38,7.6698]
[1720185549993,7.6675,130.42,130.37,7.71565085]
[1720185550195,7.6684,130.41,130.37,0.04545085]
[1720185550421,7.6687,130.4,130.37,0.04545085]
[1720185551428,0.17,130.39,130.37,0.04545085]
[1720185551627,7.6698,130.38,130.37,0.04545085]
[1720185551920,0.17,130.38,130.37,0.04545085]
[1720185552121,7.6682,130.41,130.37,0.04545085]
[1720185552331,10.55328881,130.45,130.37,0.04545085]
[1720185552539,10.55328881,130.45,130.4,26.8396]
[1720185552540,13.97964233,130.45,130.4,26.8396]
[1720185552712,13.97964233,130.45,130.37,0.04545085]
[1720185553126,33.14444233,130.45,130.37,0.04545085]
[1720185553336,33.14444233,130.45,130.38,7.6698]
[1720185553642,7.6676,130.42,130.37,7.71565085]
[1720185553813,0.17,130.41,130.37,7.71565085]
[1720185555033,7.8381,130.41,130.37,0.04545085]
[1720185556073,8.01775352,130.45,130.38,6.0166]
[1720185556248,8.01775352,130.45,130.39,138.6191]
[1720185556541,7.6605,130.54,130.48,26.822]
[1720185556705,13.6761,130.56,130.46,6.0166]
[1720185556904,8.01028684,130.57,130.46,6.0166]
[1720185557209,7.6599,130.55,130.5,7.6627]
[1720185557403,8.01028684,130.57,130.49,19.1573]
[1720185557608,27.15788684,130.57,130.49,19.1573]
[1720185557831,27.15788684,130.57,130.46,32.8437]
[1720185557832,7.6622,130.51,130.46,32.8437]
[1720185558128,19.1502,130.55,130.47,7.664]
[1720185558304,7.6618,130.52,130.46,26.8272]
[1720185558509,7.6624,130.51,130.46,26.8272]
[1720185559603,0.17,130.5,130.46,26.8272]
[1720185560828,0.17,130.5,130.46,19.1625]
[1720185561031,7.8329,130.5,130.46,19.1625]
[1720185561233,0.17,130.5,130.46,26.8276]
[1720185561423,0.17,130.5,130.47,7.6643]
[1720185561731,0.17,130.51,130.47,7.6643]
[1720185561944,8.01028684,130.57,130.48,19.1598]
[1720185562127,8.01028684,130.57,130.45,100.0]
[1720185562313,8.01028684,130.57,130.5,19.1568]
[1720185562835,7.6596,130.56,130.51,7.6622]
[1720185563229,7.6599,130.55,130.5,26.8194]
[1720185563753,8.01028684,130.57,130.5,19.1568]
[1720185564038,8.01028684,130.57,130.54,7.6602]
[1720185564246,10.73851133,130.62,130.56,7.6589]
[1720185564416,7.6572,130.6,130.55,7.6597]
[1720185564844,7.6572,130.6,130.54,26.8107]
[1720185565219,8.00684556,130.62,130.55,7.6598]
[1720185565538,7.6573,130.6,130.54,26.8108]
[1720185565923,7.6579,130.59,130.54,7.6604]
[1720185566141,7.6569,130.61,130.55,7.6597]
[1720185566324,14.04246261,130.62,130.55,7.6597]
[1720185566644,12.16962855,130.62,130.54,7.6603]
[1720185566818,7.6579,130.59,130.54,7.6603]
[1720185567143,12.16962855,130.62,130.53,19.1521]
[1720185567343,50.45042855,130.62,130.5,25.8117]
[1720185567540,7.6588,130.57,130.51,7.6621]
[1720185567756,0.17,130.56,130.52,7.6616]
[1720185568042,0.17,130.56,130.52,19.1536]
[1720185568241,0.17,130.56,130.53,7.661]
[1720185568543,7.6571,130.6,130.54,19.1507]
[1720185568758,0.17,130.59,130.54,19.1507]
[1720185569124,0.17,130.59,130.55,7.6598]
[1720185569325,0.17,130.59,130.51,19.1544]
[1720185569523,0.17,130.59,130.53,7.6606]
[1720185569524,7.6584,130.58,130.53,7.6606]
[1720185569829,0.17,130.57,130.53,7.6606]
[1720185570040,7.8287,130.57,130.52,7.6615]
[1720185570349,0.17,130.57,130.52,7.6615]
[1720185570521,0.17,130.57,130.51,19.1544]
[1720185570721,7.8288,130.57,130.52,7.6614]
[1720185571130,0.17,130.57,130.52,7.6614]
[1720185571349,0.17,130.57,130.5,6.6551]
[1720185571552,0.17,130.57,130.5,25.811]
[1720185571851,0.17,130.57,130.52,19.1538]
[1720185572035,7.6594,130.56,130.52,19.1538]
[1720185572234,0.17,130.55,130.52,19.1538]
[1720185572432,7.8288,130.57,130.52,26.8153]
[1720185572632,0.17,130.57,130.52,19.1538]
[1720185573655,0.17,130.57,130.53,7.6609]
[1720185573849,0.17,130.57,130.52,19.1538]
[1720185574154,0.17,130.57,130.5,6.6551]
[1720185574361,7.6604,130.55,130.5,14.3175]
[1720185574565,0.17,130.54,130.51,7.6622]
[1720185575054,0.17,130.54,130.52,7.6615]
[1720185575648,7.6588,130.57,130.52,7.6615]
[1720185575851,0.17,130.56,130.5,6.6551]
[1720185576036,7.66,130.55,130.5,14.3177]
[1720185576236,0.17,130.54,130.51,7.6622]
[1720185576956,0.17,130.55,130.51,7.6622]
[1720185577558,7.83,130.55,130.5,14.3177]
[1720185577760,0.17,130.55,130.51,19.1554]
[1720185578062,7.6589,130.57,130.52,7.6612]
[1720185579156,8.00874791,130.59,130.53,100.0]
[1720185579367,7.6541,130.65,130.6,7.6567]
[1720185579658,7.6576,130.59,130.56,15.792]
[1720185579959,7.6565,130.61,130.56,7.6589]
[1720185580431,7.6571,130.6,130.55,33.0319]
[1720185580631,8.00416775,130.66,130.57,7.6584]
[1720185580831,8.00416775,130.66,130.57,19.1465]
[1720185581364,7.6552,130.63,130.58,7.658]
[1720185581534,7.6558,130.62,130.58,7.658]
[1720185581738,7.6564,130.61,130.57,19.1465]
[1720185581931,19.1369,130.64,130.55,6.2226]
[1720185582153,46.27266775,130.66,130.55,6.2226]
[1720185582333,7.6579,130.59,130.55,6.2226]
[1720185582539,0.17,130.58,130.55,6.2226]
[1720185583238,0.17,130.58,130.55,13.8824]
[1720185583534,7.6553,130.63,130.55,6.2226]
[1720185583740,7.6553,130.63,130.58,26.8025]
[1720185583949,7.6558,130.62,130.58,26.8025]
[1720185584152,7.6566,130.61,130.55,25.3709]
[1720185584337,7.657,130.6,130.55,33.0306]
[1720185584536,7.6576,130.59,130.55,25.3709]
[1720185585062,0.17,130.58,130.55,33.0307]
[1720185585560,0.17,130.59,130.56,7.659]
[1720185585756,7.6565,130.61,130.56,7.659]
[1720185585757,0.17,130.6,130.56,7.659]
[1720185585938,0.17,130.6,130.55,25.3709]
[1720185586142,0.17,130.6,130.55,6.2226]
[1720185586464,7.6552,130.63,130.58,7.6579]
[1720185587060,7.6564,130.61,130.57,19.1462]
[1720185587235,7.657,130.6,130.56,7.6591]
[1720185587972,19.1391,130.63,130.55,13.8823]
[1720185588146,7.6573,130.6,130.55,13.8823]
[1720185588475,0.17,130.59,130.55,13.8823]
[1720185589056,65.40736775,130.66,130.57,7.6587]
[1720185589267,7.6548,130.64,130.59,7.6575]
[1720185589639,7.6552,130.63,130.59,7.6575]
[1720185589960,7.6552,130.63,130.58,7.6579]
[1720185590160,7.6559,130.62,130.58,7.6579]
[1720185590367,7.8265,130.61,130.56,7.6592]
[1720185590769,7.6577,130.59,130.54,7.6603]
[1720185591073,7.8281,130.58,130.54,7.6603]
[1720185591261,7.6581,130.58,130.53,7.6608]
[1720185591469,0.17,130.57,130.53,7.6608]
[1720185591837,0.17,130.57,130.54,26.8113]
[1720185592149,0.17,130.58,130.57,7.6587]
[1720185592347,0.17,130.58,130.52,121.901]
[1720185592348,7.656,130.62,130.52,121.901]
[1720185592555,0.17,130.61,130.57,7.6583]
[1720185592747,7.8264,130.61,130.57,19.1461]
[1720185593467,8.00270401,130.63,130.52,121.901]
[1720185593672,26.81826469,130.69,130.61,26.7968]
[1720185593673,7.6535,130.66,130.61,26.7968]
[1720185593873,26.81826469,130.69,130.63,7.6551]
[1720185593874,10.20646469,130.69,130.63,7.6551]
[1720185594057,8.00190882,130.68,130.63,19.1376]
[1720185594247,4.11208248,130.69,130.63,26.7925]
[1720185594444,7.6536,130.66,130.61,33.4595]
[1720185594676,7.6532,130.67,130.62,7.6556]
[1720185594856,7.6525,130.68,130.63,7.655]
[1720185595357,7.653,130.67,130.62,7.6555]
[1720185595661,23.24148248,130.69,130.61,33.4595]
[1720185595872,7.6552,130.63,130.59,19.1438]
[1720185596080,4.11208248,130.69,130.61,19.1405]
[1720185596242,7.653,130.67,130.62,7.6557]
[1720185596565,4.11208248,130.69,130.63,7.655]
[1720185596566,7.6526,130.68,130.63,7.655]
[1720185596771,4.11208248,130.69,130.62,7.6555]
[1720185596977,19.301,130.68,130.59,26.8008]
[1720185597141,7.6547,130.64,130.59,26.8009]
[1720185597353,0.17,130.63,130.59,26.8009]
[1720185597778,7.8252,130.63,130.59,19.1438]
[1720185598263,7.8252,130.63,130.59,26.8013]
[1720185598578,0.17,130.63,130.6,7.6568]
[1720185598752,0.17,130.63,130.59,26.8011]
[1720185598954,0.17,130.63,130.59,19.1438]
[1720185599259,0.17,130.63,130.6,7.6566]
[1720185599576,0.17,130.64,130.6,7.6566]
[1720185600282,7.6565,130.61,130.57,26.8053]
[1720185600465,7.8261,130.62,130.57,26.8053]
[1720185600660,7.6554,130.63,130.58,7.658]
[1720185600855,0.17,130.62,130.59,7.6574]
[1720185601279,7.8259,130.62,130.58,19.1439]
[1720185601496,0.17,130.62,130.59,7.6571]
[1720185601983,0.17,130.62,130.58,26.8017]
[1720185602280,0.17,130.62,130.59,7.6574]
[1720185602475,48.50208248,130.69,130.61,19.1405]
[1720185602476,4.11208248,130.69,130.61,19.1405]
[1720185602672,7.6529,130.67,130.62,7.6552]
[1720185602978,7.6529,130.67,130.62,7.6555]
[1720185603483,7.6529,130.67,130.63,7.6551]
[1720185603656,17.71718849,130.69,130.63,19.1379]
[1720185603862,11.76398248,130.69,130.64,7.6542]
[1720185604057,4.11208248,130.69,130.65,6.1518]
[1720185604369,4.11208248,130.69,130.67,26.7846]
[1720185604553,4.11208248,130.69,130.68,7.6522]
[1720185605193,0.1,130.69,130.68,7.6522]
[1720185605671,6.19864062,130.76,130.72,19.1239]
[1720185605979,7.99483944,130.77,130.73,7.6491]
[1720185606165,7.6476,130.76,130.71,26.7763]
[1720185606360,15.64203944,130.77,130.71,26.7763]
[1720185606780,7.99483944,130.77,130.72,7.6497]
[1720185606960,6.12852025,130.78,130.71,19.126]
[1720185607162,0.1,130.79,130.74,7.6486]
[1720185607386,8.094839,130.79,130.69,21.7095]
[1720185607590,8.094839,130.79,130.75,7.6476]
[1720185607769,7.6483,130.75,130.69,21.7095]
[1720185607968,19.1165,130.78,130.65,21.6554]
[1720185608180,7.6506,130.71,130.65,21.6554]
[1720185608367,7.6506,130.71,130.66,7.653]
[1720185608577,7.6499,130.72,130.66,19.1328]
[1720185608775,0.17,130.71,130.67,7.6524]
[1720185608967,0.17,130.72,130.66,19.1328]
[1720185609292,0.17,130.72,130.67,7.6526]
[1720185609475,0.17,130.72,130.65,29.3092]
[1720185609667,7.6515,130.7,130.65,29.3092]
[1720185609865,0.17,130.69,130.65,13.9609]
[1720185610092,0.17,130.69,130.64,7.6544]
[1720185610269,0.17,130.69,130.63,19.1368]
[1720185610593,7.6529,130.67,130.63,19.1368]
[1720185610763,0.17,130.66,130.63,19.1368]
[1720185611108,0.17,130.66,130.61,29.9822]
[1720185611262,0.17,130.66,130.6,19.1413]
[1720185611263,7.6541,130.65,130.6,19.1413]
[1720185611584,7.6541,130.65,130.58,6.3736]
[1720185611585,0.17,130.66,130.58,6.3736]
[1720185611891,7.6553,130.63,130.58,14.0311]
[1720185612191,0.17,130.62,130.58,7.658]
[1720185612903,0.17,130.62,130.57,19.1462]
[1720185612904,7.6567,130.61,130.56,7.659]
[1720185613077,0.17,130.6,130.57,7.6586]
[1720185613283,7.8259,130.62,130.57,7.6586]
[1720185613697,7.8258,130.62,130.57,7.6586]
[1720185613902,7.8258,130.62,130.56,26.8069]
[1720185614710,7.8258,130.62,130.57,7.6585]
[1720185615220,7.8258,130.62,130.56,26.8069]
[1720185615790,7.8258,130.62,130.57,7.6585]
[1720185616139,0.17,130.62,130.58,19.1451]
[1720185616305,0.17,130.62,130.58,26.803]
[1720185617801,8.00507172,130.65,130.54,229.4592]
[1720185618096,6.00552435,130.69,130.54,106.4892]
[1720185618300,7.6547,130.64,130.59,26.7995]
[1720185618495,27.13605968,130.67,130.59,19.1425]
[1720185618703,27.13605968,130.67,130.57,7.6582]
[1720185618704,7.6558,130.62,130.57,7.6582]
[1720185618905,19.1361,130.65,130.56,19.1476]
[1720185619214,7.6562,130.62,130.57,7.6583]
[1720185619417,0.17,130.61,130.57,7.6583]
[1720185620399,0.17,130.61,130.56,19.1476]
[1720185620604,7.8266,130.61,130.56,26.8068]
[1720185620906,0.17,130.61,130.57,7.6586]
[1720185621505,7.8264,130.61,130.56,26.8066]
[1720185621722,0.17,130.61,130.53,19.152]
[1720185621895,7.6577,130.59,130.54,7.6603]
[1720185622099,0.17,130.58,130.54,7.6603]
[1720185623109,0.17,130.58,130.55,7.6598]
[1720185623310,0.17,130.59,130.55,7.6598]
[1720185623618,7.8275,130.59,130.54,7.6602]
[1720185624328,0.17,130.59,130.55,19.1495]
[1720185624616,20.1145,130.63,130.57,7.6587]
[1720185625224,7.656,130.62,130.57,7.6587]
[1720185625606,7.656,130.62,130.57,26.8055]
[1720185626323,0.17,130.61,130.57,26.8055]
[1720185627437,7.8264,130.61,130.57,19.1468]
[1720185627632,7.8264,130.61,130.56,7.659]
[1720185627835,7.6582,130.58,130.54,19.1498]
[1720185628036,0.17,130.57,130.54,19.1498]
[1720185628731,0.17,130.57,130.51,25.8102]
[1720185628932,0.17,130.57,130.53,19.1526]
[1720185629116,0.17,130.57,130.54,7.6604]
[1720185629434,0.17,130.58,130.55,7.6597]
[1720185629723,0.17,130.58,130.56,7.6591]
[1720185629909,0.17,130.59,130.56,7.6591]
[1720185630227,8.00732937,130.6,130.58,7.6577]
[1720185630431,8.00732937,130.6,130.57,19.1458]
[1720185630804,15.66442937,130.6,130.55,7.6598]
[1720185631426,0.17,130.59,130.55,7.6598]
[1720185631655,8.00732937,130.6,130.51,6.6559]
[1720185631820,24.04466299,130.75,130.61,22.97]
[1720185632133,24.04466299,130.75,130.69,7.6511]
[1720185632134,31.69296299,130.75,130.69,7.6511]
[1720185632431,31.69296299,130.75,130.7,7.651]
[1720185632726,37.81308429,130.75,130.7,7.651]
[1720185633026,30.16478429,130.75,130.7,19.1274]
[1720185633334,30.16478429,130.75,130.7,26.7783]
[1720185633924,30.16478429,130.75,130.69,7.6515]
[1720185634105,30.16478429,130.75,130.71,7.6505]
[1720185634303,10.31178429,130.75,130.64,239.4225]
[1720185634503,10.31178429,130.75,130.74,7.6487]
[1720185634504,4.19166299,130.75,130.74,7.6487]
[1720185635931,0.1,130.79,130.78,26.7624]
[1720185640538,0.1,130.79,130.78,126.7624]
[1720185640839,0.1,130.79,130.78,26.7624]
[1720185643520,7.6474,130.77,130.72,33.1363]
[1720185643728,0.17,130.78,130.71,7.6504]
[1720185643936,0.17,130.78,130.71,19.1257]
[1720185644235,0.17,130.78,130.68,6.4354]
[1720185645246,0.17,130.78,130.7,19.1266]
[1720185645434,7.6478,130.76,130.71,7.6504]
[1720185645633,0.17,130.75,130.71,7.6504]
[1720185645957,7.6489,130.74,130.67,19.1316]
[1720185646254,0.17,130.75,130.71,7.6501]
[1720185646432,0.17,130.76,130.65,15.7219]
[1720185646630,7.8176,130.76,130.71,26.7764]
[1720185647438,0.17,130.76,130.68,19.1299]
[1720185648032,7.8177,130.76,130.7,19.1271]
[1720185648232,0.17,130.76,130.72,7.6498]
[1720185648442,0.17,130.76,130.72,19.1242]
[1720185648628,0.17,130.76,130.72,26.7739]
[1720185648833,0.17,130.76,130.73,7.649]
[1720185649037,0.17,130.76,130.72,26.7739]
[1720185649640,0.17,130.77,130.72,19.1242]
[1720185649846,7.6483,130.75,130.69,26.7802]
[1720185650037,0.17,130.74,130.7,7.6508]
[1720185650255,0.17,130.74,130.69,19.1291]
[1720185650457,7.6506,130.71,130.66,19.1325]
[1720185650662,0.17,130.7,130.64,7.6545]
[1720185650960,4.7614,130.74,130.63,26.7919]
[1720185650961,35.25,130.73,130.63,26.7919]
[1720185651178,0.17,130.72,130.63,19.1369]
[1720185651466,19.1265,130.71,130.62,7.6556]
[1720185651631,0.17,130.7,130.62,7.6556]
[1720185652232,7.6528,130.67,130.62,7.6556]
[1720185652463,0.17,130.66,130.62,7.6556]
[1720185652832,0.17,130.66,130.62,19.138]
[1720185653051,0.17,130.66,130.64,7.654]
[1720185653254,0.17,130.66,130.63,7.655]
[1720185653459,0.17,130.67,130.63,7.655]
[1720185653834,0.17,130.67,130.64,7.6545]
[1720185654059,0.17,130.68,130.64,7.6545]
[1720185654274,0.17,130.68,130.63,7.655]
[1720185654566,0.17,130.68,130.65,7.6539]
[1720185654743,7.6514,130.7,130.65,7.6539]
[1720185654946,7.6517,130.69,130.64,26.7906]
[1720185655558,16.1261,130.73,130.6,200.0]
[1720185655863,5.97669628,130.76,130.62,100.0]
[1720185656036,20.1043,130.78,130.62,122.97]
[1720185656362,7.6493,130.74,130.68,7.6521]
[1720185656545,19.1196,130.76,130.67,19.1311]
[1720185656935,7.6495,130.73,130.68,7.6519]
[1720185657266,7.6488,130.74,130.69,7.6515]
[1720185657469,7.6486,130.75,130.7,7.6509]
[1720185657641,7.99842189,130.77,130.69,19.129]
[1720185657842,7.6488,130.74,130.69,26.7805]
[1720185658146,7.6483,130.75,130.7,7.6509]
[1720185658347,0.17,130.74,130.7,7.6509]
[1720185658750,7.99842189,130.77,130.73,7.6489]
[1720185659044,0.1,130.79,130.66,15.6534]
[1720185659045,0.1,130.79,130.67,6.2671]
[1720185659467,0.1,130.79,130.72,26.7734]
[1720185659468,7.6473,130.77,130.72,26.7734]
[1720185659651,0.1,130.79,130.67,6.2671]
[1720185659652,19.2155,130.79,130.7,7.6505]
[1720185659969,7.6493,130.73,130.69,19.1291]
[1720185660171,7.6493,130.73,130.68,7.6517]
[1720185660345,7.6495,130.73,130.68,7.6522]
[1720185660551,0.17,130.72,130.69,7.6515]
[1720185660766,0.17,130.73,130.67,6.2671]
[1720185661064,0.17,130.73,130.71,7.6504]
[1720185661570,0.17,130.73,130.69,7.6516]
[1720185661768,0.17,130.73,130.67,19.1311]
[1720185662063,7.8194,130.73,130.68,7.6519]
[1720185662264,7.651,130.71,130.66,7.653]
[1720185662450,0.17,130.7,130.63,6.245]
[1720185662657,7.6502,130.72,130.67,7.6527]
[1720185662864,0.17,130.71,130.63,6.245]
[1720185663173,0.17,130.71,130.68,26.7823]
[1720185663374,7.6512,130.7,130.65,26.7877]
[1720185663669,0.17,130.69,130.65,19.1338]
[1720185663878,19.1263,130.71,130.58,16.1944]
[1720185664064,0.17,130.7,130.58,16.1944]
[1720185664369,7.6526,130.68,130.63,7.655]
[1720185664572,0.17,130.67,130.63,7.655]
[1720185665170,0.17,130.67,130.64,19.1362]
[1720185665559,0.17,130.67,130.61,19.1398]
[1720185665770,7.8233,130.67,130.62,7.6556]
[1720185666074,7.8233,130.67,130.61,19.1398]
[1720185666075,7.8233,130.67,130.63,7.6551]
[1720185666272,0.17,130.67,130.64,7.6545]
[1720185666471,0.17,130.68,130.64,7.6545]
[1720185666674,0.17,130.68,130.6,19.1413]
[1720185666851,7.653,130.67,130.62,7.6556]
[1720185667058,0.17,130.66,130.62,7.6556]
[1720185667375,25.11575375,130.71,130.64,7.6541]
[1720185667376,7.652,130.69,130.64,7.6541]
[1720185667873,25.11575375,130.71,130.63,19.1377]
[1720185667874,7.6524,130.68,130.63,26.7926]
[1720185668171,7.6528,130.67,130.63,19.1377]
[1720185668373,7.6524,130.68,130.63,26.7928]
[1720185668748,0.17,130.67,130.63,26.7928]
[1720185668948,7.8228,130.67,130.63,19.1377]
[1720185669180,7.6537,130.66,130.61,7.6563]
[1720185669348,0.17,130.65,130.62,7.6557]
[1720185669551,0.17,130.65,130.63,7.6552]
[1720185670379,0.17,130.65,130.62,7.6555]
[1720185670563,0.17,130.66,130.63,7.655]
[1720185670881,7.8229,130.67,130.63,7.655]
[1720185671064,7.8229,130.67,130.61,19.1395]
[1720185671375,7.8229,130.67,130.62,7.6556]
[1720185671852,0.17,130.67,130.63,7.655]
[1720185672783,0.17,130.67,130.63,26.7928]
[1720185672954,8.00251765,130.71,130.61,22.97]
[1720185673160,0.1,130.79,130.7,6.2994]
[1720185673462,0.1,130.79,130.76,19.1188]
[1720185673656,0.1,130.79,130.78,7.6464]
[1720185674384,0.8551514,130.82,130.81,26.7562]
[1720185674750,0.8551514,130.82,130.81,19.1116]
[1720185675172,0.8551514,130.82,130.81,26.7562]
[1720185678378,0.1,130.89,130.86,26.7455]
[1720185678759,0.1,130.89,130.85,7.6421]
[1720185678962,0.1,130.89,130.81,15.134]
[1720185679161,0.1,130.89,130.87,19.1023]
[1720185679662,0.1,130.89,130.88,7.6405]
[1720185681679,0.1,130.89,130.87,26.7433]
[1720185681891,0.1,130.89,130.88,7.6405]
[1720185682182,0.1,130.89,130.87,19.1023]
[1720185682361,0.1,130.89,130.88,7.6405]
[1720185682975,0.8551514,130.95,130.92,19.0943]
[1720185683177,0.8551514,130.95,130.94,7.637]
[1720185685063,0.1,130.99,130.98,26.7215]
[1720185685561,0.1,130.99,130.98,19.0868]
[1720185685787,0.1,130.99,130.98,26.7215]
[1720185686883,0.8551514,131.08,131.01,200.0]
[1720185687067,0.8551514,131.08,131.07,7.6295]
[1720185687471,0.8551514,131.08,131.06,26.7043]
[1720185687865,0.8551514,131.08,131.06,19.0744]
[1720185688200,0.8551514,131.08,131.06,26.7043]
[1720185688578,0.8551514,131.08,131.06,19.0744]
[1720185688789,0.8551514,131.08,131.04,7.631]
[1720185689099,0.8551514,131.08,131.05,7.6306]
[1720185689400,0.8551514,131.08,131.04,7.6311]
[1720185689697,0.8551514,131.08,131.05,19.0752]
[1720185689872,0.8551514,131.08,131.06,7.6298]
[1720185690490,0.8551514,131.08,131.05,26.7057]
[1720185691167,0.8551514,131.08,131.05,19.0752]
[1720185691785,0.8551514,131.08,131.06,7.63]
[1720185691989,0.8551514,131.08,131.05,26.7058]
[1720185692379,0.8551514,131.08,131.05,19.0752]
[1720185692686,0.8551514,131.08,131.07,7.6295]
[1720185694096,0.8551514,131.08,131.05,19.0752]
[1720185694272,0.8551514,131.08,131.01,115.2877]
[1720185694273,0.8551514,131.08,131.02,26.7116]
[1720185694478,0.8551514,131.08,131.02,19.0798]
[1720185694704,0.8551514,131.08,130.99,100.0]
[1720185694873,0.8551514,131.08,131.03,19.0786]
[1720185695074,0.8551514,131.08,131.05,7.6306]
[1720185695299,0.8551514,131.08,131.06,7.63]
[1720185695492,0.8551514,131.08,131.07,7.6295]
[1720185696403,0.8551514,131.08,131.06,7.6298]
[1720185696595,0.8551514,131.08,131.05,19.0765]
[1720185697072,0.8551514,131.08,131.05,26.707]
[1720185697980,0.8551514,131.08,131.05,19.0765]
[1720185698180,0.17,131.07,131.04,7.631]
[1720185698399,0.17,131.07,131.03,7.6318]
[1720185698724,0.17,131.07,130.99,19.0846]
[1720185698896,7.6304,131.06,131.01,7.6329]
[1720185699188,0.17,131.07,131.03,7.6318]
[1720185699884,7.7998,131.07,131.02,7.6323]
[1720185700082,7.6301,131.06,131.02,7.6324]
[1720185700281,7.6296,131.07,131.01,19.0819]
[1720185700485,8.4840514,131.08,131.03,26.7106]
[1720185700785,0.8551514,131.08,131.04,7.6312]
[1720185701180,0.8551514,131.08,131.03,26.7107]
[1720185701181,8.4840514,131.08,131.03,26.7107]
[1720185701583,0.17,131.07,131.03,26.7107]
[1720185702185,0.17,131.07,131.03,19.0791]
[1720185702409,0.8551514,131.08,131.05,7.6305]
[1720185703084,0.8551514,131.08,131.05,19.0763]
[1720185703805,0.8551514,131.08,131.07,7.6295]
[1720185704902,0.8551514,131.08,131.05,19.0763]
[1720185705088,0.8551514,131.08,131.07,7.6295]
[1720185707403,8.07246588,131.19,131.07,7.6295]
[1720185707404,14.6104404,131.21,131.2,7.6219]
[1720185707587,0.66055294,131.21,131.2,107.6219]
[1720185709207,5.294e-05,131.21,131.2,230.5919]
[1720185709408,0.1,131.29,131.27,19.0444]
[1720185709891,0.1,131.29,131.24,7.6194]
[1720185710288,7.6175,131.28,131.23,7.62]
[1720185710609,0.1,131.29,131.2,19.0543]
[1720185710787,0.1,131.29,131.19,7.6222]
[1720185711118,0.1,131.29,131.2,7.6218]
[1720185711119,7.6185,131.26,131.2,7.6218]
[1720185711289,19.2139906,131.29,131.2,7.6218]
[1720185711290,7.6192,131.25,131.2,7.6218]
[1720185711620,19.2139906,131.29,131.19,19.0554]
[1720185711913,7.6185,131.26,131.21,7.6211]
[1720185712119,0.17,131.25,131.21,7.6212]
[1720185712309,7.7894,131.25,131.19,26.6774]
[1720185712489,7.6202,131.23,131.19,19.0554]
[1720185712689,0.17,131.22,131.18,7.623]
[1720185712890,0.17,131.22,131.19,7.6223]
[1720185713192,0.17,131.22,131.18,26.68]
[1720185713404,0.17,131.23,131.19,7.6224]
[1720185713608,0.17,131.23,131.18,19.0571]
[1720185713988,0.17,131.23,131.18,26.68]
[1720185714189,0.17,131.23,131.19,7.6223]
[1720185714388,0.17,131.24,131.19,7.6223]
[1720185714607,7.7896,131.24,131.19,7.6223]
[1720185714816,7.6181,131.27,131.21,7.621]
[1720185715019,25.38970803,131.29,131.2,19.0539]
[1720185715198,7.6197,131.24,131.18,7.6229]
[1720185715606,7.6203,131.23,131.18,7.6229]
[1720185715919,19.0454,131.27,131.18,7.623]
[1720185716420,7.6209,131.22,131.17,19.0583]
[1720185716715,0.17,131.26,131.18,7.623]
[1720185716716,0.17,131.21,131.18,7.623]
[1720185717290,0.17,131.22,131.18,7.623]
[1720185717506,0.17,131.22,131.17,19.0583]